lending/lending_fUSD_20240410
["ID","MTS","AMOUNT","RATE_DAILY","PERIOD"]
[322057154,1712733045484,-500.0,0.0001994,2]
[322057155,1712733045493,-525.79497651,0.0001994,2]
[322057156,1712733045503,-516.13054704,0.0001994,2]
[322057157,1712733045512,-500.0,0.0001994,2]
[322057158,1712733045522,-500.0,0.0001994,2]
[322057160,1712733045531,-500.0,0.0001994,2]
[322057161,1712733045540,-520.65212288,0.0001994,2]
[322057162,1712733045548,-500.0,0.0001994,2]
[322057163,1712733045557,-500.0,0.0001994,2]
[322057164,1712733045566,-500.0,0.0001994,2]
[322057165,1712733045575,-500.0,0.0001994,2]
[322057166,1712733045585,-511.11856862,0.0001994,2]
[322057167,1712733045594,-500.0,0.0001994,2]
[322057168,1712733045603,-500.0,0.0001994,2]
[322057169,1712733045612,-237.94649296,0.0001994,2]
[322057170,1712733045621,-500.0,0.0001994,2]
[322057171,1712733045632,-500.0,0.0001994,2]
[322057172,1712733045642,-500.0,0.0001994,2]
[322057173,1712733045651,-500.0,0.0001994,2]
[322057174,1712733045661,-500.0,0.0001994,2]
[322057175,1712733045670,-503.09896911,0.0001994,2]
[322057176,1712733045681,-500.0,0.0001994,2]
[322057177,1712733045691,-500.0,0.0001994,2]
[322057178,1712733045701,-500.0,0.0001994,2]
[322057179,1712733045712,-503.08161171,0.0001994,2]
[322057180,1712733045722,-500.0,0.0001994,2]
[322057181,1712733045732,-1326.01,0.0001994,2]
[322057182,1712733045743,-254.63584683,0.0001994,2]
[322057183,1712733045754,-500.0,0.0001994,2]
[322057184,1712733045765,-500.0,0.0001994,2]
[322057185,1712733045775,-516.02180745,0.0001994,2]
[322057186,1712733045786,-502.04650098,0.0001994,2]
[322057187,1712733045796,-500.0,0.0001994,2]
[322057188,1712733045808,-500.0,0.0001994,2]
[322057189,1712733045819,-500.0,0.0001994,2]
[322057190,1712733045831,-500.0,0.0001994,2]
[322057191,1712733045841,-500.0,0.0001994,2]
[322057192,1712733045851,-500.0,0.0001994,2]
[322057193,1712733045860,-500.0,0.0001994,2]
[322057194,1712733045870,-500.0,0.0001994,2]
[322057195,1712733045880,-500.0,0.0001994,2]
[322057196,1712733045889,-300.97275133,0.0001994,2]
[322057197,1712733045898,-500.0,0.0001994,2]
[322057198,1712733045908,-500.9486089,0.0001994,2]
[322057199,1712733045918,-506.72329279,0.0001994,2]
[322057200,1712733045928,-500.0,0.0001994,2]
[322057201,1712733045938,-505.55064778,0.0001994,2]
[322057202,1712733045948,-500.0,0.0001994,2]
[322057203,1712733045958,-500.0,0.0001994,2]
[322057204,1712733045967,-508.19287421,0.0001994,2]
[322057205,1712733045978,-500.0,0.0001994,2]
[322057206,1712733045987,-500.0,0.0001994,2]
[322057207,1712733045998,-500.0,0.0001994,2]
[322057208,1712733046008,-500.0,0.0001994,2]
[322057209,1712733046017,-506.56332044,0.0001994,2]
[322057210,1712733046026,-500.0,0.0001994,2]
[322057211,1712733046037,-500.0,0.0001994,2]
[322057212,1712733046049,-500.0,0.0001994,2]
[322057213,1712733046060,-500.95428273,0.0001994,2]
[322057214,1712733046069,-500.0,0.0001994,2]
[322057215,1712733046078,-500.0,0.0001994,2]
[322057216,1712733046088,-500.0,0.0001994,2]
[322057217,1712733046097,-500.0,0.0001994,2]
[322057218,1712733046107,-500.0,0.0001994,2]
[322057219,1712733046116,-500.0,0.0001994,2]
[322057220,1712733046128,-500.0,0.0001994,2]
[322057221,1712733046139,-500.0,0.0001994,2]
[322057222,1712733046148,-500.0,0.0001994,2]
[322057223,1712733046158,-504.23487511,0.0001994,2]
[322057224,1712733046167,-500.0,0.0001994,2]
[322057225,1712733046176,-500.0,0.0001994,2]
[322057226,1712733046185,-500.0,0.0001994,2]
[322057227,1712733046195,-500.0,0.0001994,2]
[322057228,1712733046204,-500.0,0.0001994,2]
[322057229,1712733046214,-500.0,0.0001994,2]
[322057230,1712733046223,-500.0,0.0001994,2]
[322057231,1712733046232,-500.0,0.0001994,2]
[322057232,1712733046241,-500.0,0.0001994,2]
[322057233,1712733046250,-500.0,0.0001994,2]
[322057234,1712733046259,-760.81,0.0001994,2]
[322057235,1712733046269,-523.47281973,0.0001994,2]
[322057236,1712733046278,-500.0,0.0001994,2]
[322057237,1712733046287,-500.0,0.0001994,2]
[322057238,1712733046296,-529.84622202,0.0001994,2]
[322057239,1712733046305,-500.0,0.0001994,2]
[322057240,1712733046314,-500.0,0.0001994,2]
[322057241,1712733046323,-500.0,0.0001994,2]
[322057242,1712733046333,-500.0,0.0001994,2]
[322057243,1712733046342,-500.0,0.0001994,2]
[322057244,1712733046351,-500.0,0.0001994,2]
[322057245,1712733046360,-500.0,0.0001994,2]
[322057246,1712733046369,-500.0,0.0001994,2]
[322057247,1712733046378,-500.0,0.0001994,2]
[322057248,1712733046387,-500.0,0.0001994,2]
[322057249,1712733046397,-500.0,0.0001994,2]
[322057250,1712733046406,-500.0,0.0001994,2]
[322057251,1712733046415,-504.57707788,0.0001994,2]
[322057252,1712733046424,-503.34402798,0.0001994,2]
[322057253,1712733046433,-500.0,0.0001994,2]
[322057254,1712733046442,-500.0,0.0001994,2]
[322057255,1712733046452,-500.0,0.0001994,2]
[322057256,1712733046461,-500.0,0.0001994,2]
[322057257,1712733046470,-500.0,0.0001994,2]
[322057258,1712733046480,-528.03244098,0.0001994,2]
[322057259,1712733046489,-500.0,0.0001994,2]
[322057260,1712733046498,-500.0,0.0001994,2]
[322057261,1712733046507,-500.0,0.0001994,2]
[322057262,1712733046517,-500.0,0.0001994,2]
[322057263,1712733046526,-500.0,0.0001994,2]
[322057264,1712733046535,-503.92728692,0.0001994,2]
[322057265,1712733046545,-500.0,0.0001994,2]
[322057266,1712733046555,-500.0,0.0001994,2]
[322057267,1712733046564,-500.0,0.0001994,2]
[322057268,1712733046574,-500.0,0.0001994,2]
[322057269,1712733046583,-503.39201854,0.0001994,2]
[322057270,1712733046592,-503.92657714,0.0001994,2]
[322057271,1712733046602,-507.95893286,0.0001994,2]
[322057272,1712733046611,-504.82540812,0.0001994,2]
[322057273,1712733046620,-500.0,0.0001994,2]
[322057274,1712733046629,-516.97846463,0.0001994,2]
[322057275,1712733046638,-500.0,0.0001994,2]
[322057276,1712733046647,-504.13297261,0.0001994,2]
[322057277,1712733046656,-510.03113842,0.0001994,2]
[322057278,1712733046665,-552.41793016,0.0001994,2]
[322057279,1712733046674,-504.37371114,0.0001994,2]
[322057280,1712733046685,-500.0,0.0001994,2]
[322057281,1712733046694,-500.0,0.0001994,2]
[322057282,1712733046704,-500.0,0.0001994,2]
[322057283,1712733046713,-500.0,0.0001994,2]
[322057284,1712733046723,-509.49990598,0.0001994,2]
[322057285,1712733046734,-500.0,0.0001994,2]
[322057286,1712733046744,-500.0,0.0001994,2]
[322057287,1712733046753,-500.0,0.0001994,2]
[322057288,1712733046764,-500.0,0.0001994,2]
[322057289,1712733046774,-506.00537261,0.0001994,2]
[322057290,1712733046784,-510.84864646,0.0001994,2]
[322057291,1712733046795,-500.0,0.0001994,2]
[322057292,1712733046805,-503.12185219,0.0001994,2]
[322057293,1712733046814,-511.85146821,0.0001994,2]
[322057294,1712733046824,-500.0,0.0001994,2]
[322057295,1712733046834,-503.39541973,0.0001994,2]
[322057296,1712733046844,-500.0,0.0001994,2]
[322057297,1712733046853,-505.63995786,0.0001994,2]
[322057298,1712733046863,-505.25782264,0.0001994,2]
[322057299,1712733046872,-504.22944519,0.0001994,2]
[322057300,1712733046881,-504.73260612,0.0001994,2]
[322057301,1712733046891,-500.0,0.0001994,2]
[322057302,1712733046899,-507.15242555,0.0001994,2]
[322057303,1712733046909,-500.0,0.0001994,2]
[322057304,1712733046919,-508.93555837,0.0001994,2]
[322057305,1712733046929,-503.58711924,0.0001994,2]
[322057306,1712733046939,-500.0,0.0001994,2]
[322057307,1712733046949,-500.0,0.0001994,2]
[322057308,1712733046959,-500.0,0.0001994,2]
[322057309,1712733046969,-500.0,0.0001994,2]
[322057310,1712733046979,-500.0,0.0001994,2]
[322057311,1712733046989,-500.0,0.0001994,2]
[322057312,1712733046998,-500.0,0.0001994,2]
[322057313,1712733047008,-500.0,0.0001994,2]
[322057314,1712733047069,-500.0,0.0001994,2]
[322057315,1712733047079,-509.68994141,0.0001994,2]
[322057316,1712733047090,-500.0,0.0001994,2]
[322057317,1712733047101,-500.0,0.0001994,2]
[322057318,1712733047110,-500.0,0.0001994,2]
[322057319,1712733047121,-500.0,0.0001994,2]
[322057320,1712733047133,-500.0,0.0001994,2]
[322057321,1712733047144,-500.0,0.0001994,2]
[322057322,1712733047154,-481.80115686,0.0001994,2]
[322057323,1712733047164,-500.0,0.0001994,2]
[322057324,1712733047173,-500.0,0.0001994,2]
[322057325,1712733047183,-797.86,0.0001994,2]
[322057326,1712733047194,-500.0,0.0001994,2]
[322057327,1712733047206,-167.07020782,0.0001994,2]
[322057328,1712733047216,-654.12,0.0001994,2]
[322057329,1712733047226,-500.0,0.0001994,2]
[322057330,1712733047236,-500.0,0.0001994,2]
[322057331,1712733047246,-593.09914855,0.0001994,2]
[322057332,1712733047255,-500.0,0.0001994,2]
[322057333,1712733047265,-863.6,0.0001994,2]
[322057334,1712733047275,-500.0,0.0001994,2]
[322057335,1712733047285,-662.53,0.0001994,2]
[322057336,1712733047295,-505.04969029,0.0001994,2]
[322057337,1712733047304,-500.0,0.0001994,2]
[322057338,1712733047314,-500.0,0.0001994,2]
[322057339,1712733047323,-500.0,0.0001994,2]
[322057340,1712733047334,-500.0,0.0001994,2]
[322057341,1712733047343,-509.79643037,0.0001994,2]
[322057342,1712733047355,-445.25444177,0.0001994,2]
[322057343,1712733047365,-500.0,0.0001994,2]
[322057344,1712733047374,-744.31,0.0001994,2]
[322057345,1712733047383,-765.29,0.0001994,2]
[322057346,1712733047392,-727.29,0.0001994,2]
[322057347,1712733047401,-1061.91,0.0001994,2]
[322057348,1712733047410,-582.68,0.0001994,2]
[322057349,1712733047419,-513.40499866,0.0001994,2]
[322057350,1712733047429,-500.0,0.0001994,2]
[322057351,1712733047438,-515.10019035,0.0001994,2]
[322057352,1712733047447,-500.0,0.0001994,2]
[322057353,1712733047457,-1078.23,0.0001994,2]
[322057354,1712733047466,-1142.45,0.0001994,2]
[322057355,1712733047476,-500.0,0.0001994,2]
[322057356,1712733047485,-500.0,0.0001994,2]
[322057357,1712733047494,-500.0,0.0001994,2]
[322057358,1712733047503,-500.0,0.0001994,2]
[322057359,1712733047513,-696.71,0.0001994,2]
[322057360,1712733047523,-500.0,0.0001994,2]
[322057361,1712733047534,-500.0,0.0001994,2]
[322057362,1712733047543,-500.0,0.0001994,2]
[322057363,1712733047553,-204.26703676,0.0001994,2]
[322057364,1712733047563,-500.0,0.0001994,2]
[322057365,1712733047572,-829.17,0.0001994,2]
[322057366,1712733047581,-500.0,0.0001994,2]
[322057367,1712733047590,-500.0,0.0001994,2]
[322057368,1712733047600,-500.0,0.0001994,2]
[322057369,1712733047610,-500.0,0.0001994,2]
[322057370,1712733047620,-500.0,0.0001994,2]
[322057371,1712733047630,-500.0,0.0001994,2]
[322057372,1712733047639,-500.0,0.0001994,2]
[322057373,1712733047649,-500.0,0.0001994,2]
[322057374,1712733047658,-500.0,0.0001994,2]
[322057375,1712733047667,-500.0,0.0001994,2]
[322057376,1712733047676,-500.0,0.0001994,2]
[322057377,1712733047686,-992.16,0.0001994,2]
[322057378,1712733047695,-500.0,0.0001994,2]
[322057379,1712733047704,-500.0,0.0001994,2]
[322057380,1712733047714,-500.0,0.0001994,2]
[322057381,1712733047723,-683.03,0.0001994,2]
[322057382,1712733047732,-500.0,0.0001994,2]
[322057383,1712733047741,-500.0,0.0001994,2]
[322057384,1712733047750,-546.53,0.0001994,2]
[322057385,1712733047759,-500.0,0.0001994,2]
[322057386,1712733047769,-151.0,0.0001994,2]
[322057387,1712733047778,-151.0,0.0001994,2]
[322057388,1712733047787,-151.0,0.0001994,2]
[322057389,1712733047796,-151.0,0.0001994,2]
[322057390,1712733047805,-151.0,0.0001994,2]
[322057391,1712733047815,-151.0,0.0001994,2]
[322057392,1712733047824,-151.0,0.0001994,2]
[322057393,1712733047833,-151.0,0.0001994,2]
[322057394,1712733047842,-151.0,0.0001994,2]
[322057395,1712733047851,-151.0,0.0001994,2]
[322057396,1712733047861,-151.0,0.0001994,2]
[322057397,1712733047870,-500.0,0.00019941,2]
[322057398,1712733047879,-28260.9078831,0.00019941,2]
[322057399,1712733047888,-5441.1822618,0.00019941,2]
[322057400,1712733047897,-2361.1890947,0.00019941,2]
[322057401,1712733047907,-4809.9984752,0.00019942,2]
[322057402,1712733047916,-167.50700678,0.00019942,2]
[322057403,1712733047925,-155.3250008,0.00019942,2]
[322057404,1712733047935,-409.47483522,0.00019942,2]
[322057405,1712733047944,-704.64333317,0.00019942,2]
[322057406,1712733047953,-164.08625314,0.00019942,2]
[322057407,1712733047962,-404.73102028,0.00019942,2]
[322057408,1712733047971,-155.0,0.00019942,2]
[322057409,1712733047980,-219.31639411,0.00019942,2]
[322057410,1712733047989,-2173.81938731,0.00019942,2]
[322057411,1712733047999,-622.59179802,0.00019942,2]
[322057412,1712733048008,-155.85975145,0.00019942,2]
[322057413,1712733048017,-205.88907818,0.00019942,2]
[322057414,1712733048026,-5532.00830868,0.00019942,2]
[322057415,1712733048035,-782.07514784,0.00019942,2]
[322057416,1712733048044,-215.47501592,0.00019942,2]
[322057417,1712733048056,-2353.80413367,0.00019942,2]
[322057418,1712733048065,-550.63356813,0.00019942,2]
[322057419,1712733048075,-342.50720573,0.00019942,2]
[322057420,1712733048084,-3868.0468848,0.00019942,2]
[322057421,1712733048094,-251.04961336,0.00019942,2]
[322057422,1712733048103,-211.74739846,0.00019942,2]
[322057423,1712733048112,-692.2191033,0.00019942,2]
[322057424,1712733048121,-205.1824385,0.00019942,2]
[322057425,1712733048132,-236.18996574,0.00019942,2]
[322057426,1712733048141,-233.0033711,0.00019942,2]
[322057427,1712733048150,-1125.41559954,0.00019942,2]
[322057428,1712733048159,-167.74862788,0.00019942,2]
[322057429,1712733048168,-503.28363425,0.00019942,2]
[322057430,1712733048177,-191.52472844,0.00019942,2]
[322057431,1712733048186,-256.85750697,0.00019942,2]
[322057432,1712733048195,-794.81140274,0.00019942,2]
[322057433,1712733048205,-155.81253242,0.00019942,2]
[322057434,1712733048214,-516.38610683,0.00019943,2]
[322057435,1712733048223,-320.131931,0.00019943,2]
[322057436,1712733048232,-221.99965,0.00019943,2]
[322057437,1712733048241,-320.131931,0.00019943,2]
[322057438,1712733048250,-151.0,0.00019943,2]
[322057439,1712733048260,-151.0,0.00019943,2]
[322057440,1712733048269,-157.392205,0.00019943,2]
[322057441,1712733048278,-151.0,0.00019943,2]
[322057442,1712733048287,-151.0,0.00019943,2]
[322057443,1712733048297,-151.0,0.00019943,2]
[322057444,1712733048306,-151.0,0.00019943,2]
[322057445,1712733048315,-151.0,0.00019943,2]
[322057446,1712733048324,-151.0,0.00019943,2]
[322057447,1712733048333,-151.0,0.00019943,2]
[322057448,1712733048342,-500.0,0.00019943,2]
[322057449,1712733048351,-500.0,0.00019943,2]
[322057450,1712733048360,-151.0,0.00019943,2]
[322057451,1712733048369,-151.0,0.00019943,2]
[322057452,1712733048378,-500.0,0.00019943,2]
[322057453,1712733048387,-151.0,0.00019943,2]
[322057454,1712733048396,-165.266202,0.00019943,2]
[322057455,1712733048405,-151.0,0.00019943,2]
[322057456,1712733048414,-200.660494,0.00019943,2]
[322057457,1712733048423,-165.266202,0.00019943,2]
[322057458,1712733048433,-200.660494,0.00019943,2]
[322057459,1712733048442,-1353.99,0.00019943,2]
[322057460,1712733048451,-1212.63,0.00019943,2]
[322057461,1712733048460,-151.0,0.00019943,2]
[322057462,1712733048470,-431.01853,0.00019943,2]
[322057463,1712733048479,-431.01853,0.00019943,2]
[322057464,1712733048488,-9076.83,0.00019943,2]
[322057465,1712733048498,-151.0,0.00019943,2]
[322057466,1712733048507,-151.0,0.00019943,2]
[322057467,1712733048516,-171.397167,0.00019943,2]
[322057468,1712733048526,-171.397167,0.00019943,2]
[322057469,1712733048536,-500.0,0.00019943,2]
[322057470,1712733048545,-500.0,0.00019943,2]
[322057471,1712733048554,-805.678089,0.00019943,2]
[322057472,1712733048564,-151.0,0.00019943,2]
[322057473,1712733048573,-805.678089,0.00019943,2]
[322057474,1712733048582,-238.071932,0.00019943,2]
[322057475,1712733048592,-197.704369,0.00019943,2]
[322057476,1712733048601,-238.071932,0.00019943,2]
[322057477,1712733048611,-197.704369,0.00019943,2]
[322057478,1712733048621,-1517.42,0.00019943,2]
[322057479,1712733048630,-151.0,0.00019943,2]
[322057480,1712733048640,-13330.47,0.00019943,2]
[322057481,1712733048649,-151.0,0.00019943,2]
[322057482,1712733048659,-151.0,0.00019943,2]
[322057483,1712733048669,-500.0,0.00019943,2]
[322057484,1712733048680,-151.0,0.00019943,2]
[322057485,1712733048690,-500.0,0.00019943,2]
[322057486,1712733048699,-231.07824,0.00019943,2]
[322057487,1712733048709,-151.0,0.00019943,2]
[322057488,1712733048719,-160.317576,0.00019943,2]
[322057489,1712733048729,-151.0,0.00019943,2]
[322057490,1712733048738,-151.0,0.00019943,2]
[322057491,1712733048747,-160.317576,0.00019943,2]
[322057492,1712733048757,-151.0,0.00019943,2]
[322057493,1712733048766,-151.0,0.00019943,2]
[322057494,1712733048777,-151.0,0.00019943,2]
[322057495,1712733048787,-151.0,0.00019943,2]
[322057496,1712733048796,-151.0,0.00019943,2]
[322057497,1712733048807,-151.0,0.00019943,2]
[322057498,1712733048818,-151.0,0.00019943,2]
[322057499,1712733048829,-153.607013,0.00019943,2]
[322057500,1712733048840,-151.0,0.00019943,2]
[322057501,1712733048852,-151.0,0.00019943,2]
[322057502,1712733048861,-151.0,0.00019943,2]
[322057503,1712733048871,-151.0,0.00019943,2]
[322057504,1712733048881,-151.0,0.00019943,2]
[322057505,1712733048890,-736.44917426,0.00019943,2]
[322057506,1712733048900,-1301.08673003,0.00019943,2]
[322057507,1712733048910,-23297.98636349,0.00019943,2]
[322057508,1712733048920,-155.27620996,0.00019943,2]
[322057509,1712733048931,-1969.2080462,0.00019943,2]
[322057510,1712733048942,-200.0,0.00019943,2]
[322057511,1712733048953,-1058.17735735,0.00019943,2]
[322057512,1712733048963,-161.1031879,0.00019943,2]
[322057513,1712733048973,-486.13738985,0.00019943,2]
[322057514,1712733048983,-236.17575592,0.00019943,2]
[322057515,1712733048992,-267.71551962,0.00019943,2]
[322057516,1712733049002,-155.0,0.00019943,2]
[322057517,1712733049011,-408.86191259,0.00019943,2]
[322057518,1712733049022,-662.07520958,0.00019943,2]
[322057519,1712733049031,-278.40403451,0.00019943,2]
[322057520,1712733049041,-3074.91342229,0.00019943,2]
[322057521,1712733049055,-194.59676301,0.00019943,2]
[322057522,1712733049064,-155.0,0.00019943,2]
[322057523,1712733049074,-200.45165641,0.00019943,2]
[322057524,1712733049084,-447.37999835,0.00019944,2]
[322057525,1712733049094,-151.0,0.00019944,2]
[322057526,1712733049104,-245.8611363,0.00019944,2]
[322057527,1712733049114,-151.0,0.00019944,2]
[322057528,1712733049124,-151.0,0.00019944,2]
[322057529,1712733049134,-151.0,0.00019944,2]
[322057530,1712733049143,-151.0,0.00019944,2]
[322057531,1712733049153,-151.0,0.00019944,2]
[322057532,1712733049163,-151.0,0.00019944,2]
[322057533,1712733049174,-151.0,0.00019944,2]
[322057534,1712733049183,-151.0,0.00019944,2]
[322057535,1712733049194,-151.0,0.00019944,2]
[322057536,1712733049206,-154.185013,0.00019944,2]
[322057537,1712733049216,-239.302739,0.00019944,2]
[322057538,1712733049226,-207.54713,0.00019944,2]
[322057539,1712733049238,-151.0,0.00019944,2]
[322057540,1712733049248,-151.0,0.00019944,2]
[322057541,1712733049259,-151.0,0.00019944,2]
[322057542,1712733049270,-652.56,0.00019944,2]
[322057543,1712733049279,-652.56,0.00019944,2]
[322057544,1712733049291,-652.56,0.00019944,2]
[322057545,1712733049302,-652.56,0.00019944,2]
[322057546,1712733049312,-652.56,0.00019944,2]
[322057547,1712733049322,-652.56,0.00019944,2]
[322057548,1712733049333,-652.56,0.00019944,2]
[322057549,1712733049343,-652.56,0.00019944,2]
[322057550,1712733049354,-652.56,0.00019944,2]
[322057551,1712733049365,-652.56,0.00019944,2]
[322057552,1712733049375,-652.56,0.00019944,2]
[322057553,1712733049384,-652.56,0.00019944,2]
[322057554,1712733049394,-652.56,0.00019944,2]
[322057555,1712733049403,-652.56,0.00019944,2]
[322057556,1712733049413,-652.56,0.00019944,2]
[322057557,1712733049422,-652.56,0.00019944,2]
[322057558,1712733049431,-652.56,0.00019944,2]
[322057559,1712733049442,-652.56,0.00019944,2]
[322057560,1712733049451,-652.56,0.00019944,2]
[322057561,1712733049461,-652.56,0.00019944,2]
[322057562,1712733049470,-652.56,0.00019944,2]
[322057563,1712733049480,-652.56,0.00019944,2]
[322057564,1712733049490,-652.56,0.00019944,2]
[322057565,1712733049499,-652.57282978,0.00019944,2]
[322057566,1712733049511,-151.0,0.00019944,2]
[322057567,1712733049520,-151.0,0.00019944,2]
[322057568,1712733049529,-153.162407,0.00019944,2]
[322057569,1712733049539,-151.0,0.00019944,2]
[322057570,1712733049548,-713.66855313,0.00019944,2]
[322057571,1712733049558,-2000.0,0.00019945,2]
[322057572,1712733049568,-200.0,0.00019945,2]
[322057573,1712733049578,-151.0,0.00019945,2]
[322057574,1712733049587,-219.62708,0.00019945,2]
[322057575,1712733049597,-151.0,0.00019945,2]
[322057576,1712733049607,-151.0,0.00019945,2]
[322057577,1712733049616,-151.0,0.00019945,2]
[322057578,1712733049625,-151.0,0.00019945,2]
[322057579,1712733049635,-151.0,0.00019945,2]
[322057580,1712733049646,-152.814619,0.00019945,2]
[322057581,1712733049655,-151.0,0.00019945,2]
[322057582,1712733049666,-153.017824,0.00019945,2]
[322057583,1712733049676,-161.609212,0.00019945,2]
[322057584,1712733049686,-154.037132,0.00019945,2]
[322057585,1712733049696,-151.0,0.00019945,2]
[322057586,1712733049706,-151.0,0.00019945,2]
[322057587,1712733049716,-151.0,0.00019945,2]
[322057588,1712733049726,-151.0,0.00019945,2]
[322057589,1712733049737,-153.317001,0.00019945,2]
[322057590,1712733049748,-151.0,0.00019945,2]
[322057591,1712733049758,-151.0,0.00019945,2]
[322057592,1712733049769,-151.0,0.00019945,2]
[322057593,1712733049779,-268.650667,0.00019945,2]
[322057594,1712733049789,-268.650667,0.00019945,2]
[322057595,1712733049798,-189.515144,0.00019945,2]
[322057596,1712733049808,-189.515144,0.00019945,2]
[322057597,1712733049817,-151.0,0.00019945,2]
[322057598,1712733049827,-151.0,0.00019945,2]
[322057599,1712733049836,-434.236489,0.00019945,2]
[322057600,1712733049846,-434.236489,0.00019945,2]
[322057601,1712733049855,-151.0,0.00019945,2]
[322057602,1712733049865,-154.688737,0.00019945,2]
[322057603,1712733049875,-357.742932,0.00019945,2]
[322057604,1712733049885,-357.742932,0.00019945,2]
[322057605,1712733049894,-357.742932,0.00019945,2]
[322057606,1712733049904,-357.742932,0.00019945,2]
[322057607,1712733049914,-151.0,0.00019945,2]
[322057608,1712733049923,-151.0,0.00019945,2]
[322057609,1712733049934,-151.0,0.00019945,2]
[322057610,1712733049944,-151.0,0.00019945,2]
[322057611,1712733049954,-151.0,0.00019945,2]
[322057612,1712733049965,-320.131931,0.00019945,2]
[322057613,1712733049974,-320.131931,0.00019945,2]
[322057614,1712733049984,-151.0,0.00019945,2]
[322057615,1712733049993,-151.0,0.00019945,2]
[322057616,1712733050002,-157.881184,0.00019945,2]
[322057617,1712733050013,-153.064509,0.00019945,2]
[322057618,1712733050022,-176.539073,0.00019945,2]
[322057619,1712733050032,-151.0,0.00019945,2]
[322057620,1712733050042,-151.0,0.00019945,2]
[322057621,1712733050055,-161.077838,0.00019945,2]
[322057622,1712733050064,-915.86474,0.00019945,2]
[322057623,1712733050074,-151.0,0.00019945,2]
[322057624,1712733050083,-151.0,0.00019945,2]
[322057625,1712733050094,-151.0,0.00019945,2]
[322057626,1712733050103,-165.266202,0.00019945,2]
[322057627,1712733050113,-153.849275,0.00019945,2]
[322057628,1712733050123,-200.660494,0.00019945,2]
[322057629,1712733050135,-165.266202,0.00019945,2]
[322057630,1712733050145,-200.660494,0.00019945,2]
[322057631,1712733050154,-151.0,0.00019945,2]
[322057632,1712733050163,-431.01853,0.00019945,2]
[322057633,1712733050173,-431.01853,0.00019945,2]
[322057634,1712733050182,-151.0,0.00019945,2]
[322057635,1712733050191,-153.229557,0.00019945,2]
[322057636,1712733050200,-171.397167,0.00019945,2]
[322057637,1712733050210,-171.397167,0.00019945,2]
[322057638,1712733050220,-805.678089,0.00019945,2]
[322057639,1712733050230,-151.0,0.00019945,2]
[322057640,1712733050239,-238.071932,0.00019945,2]
[322057641,1712733050249,-805.678089,0.00019945,2]
[322057642,1712733050260,-197.704369,0.00019945,2]
[322057643,1712733050272,-238.071932,0.00019945,2]
[322057644,1712733050282,-197.704369,0.00019945,2]
[322057645,1712733050292,-151.0,0.00019945,2]
[322057646,1712733050301,-151.0,0.00019945,2]
[322057647,1712733050311,-151.0,0.00019945,2]
[322057648,1712733050321,-151.0,0.00019945,2]
[322057649,1712733050330,-151.0,0.00019945,2]
[322057650,1712733050340,-160.317576,0.00019945,2]
[322057651,1712733050350,-198.02802,0.00019945,2]
[322057652,1712733050359,-151.0,0.00019945,2]
[322057653,1712733050368,-160.317576,0.00019945,2]
[322057654,1712733050378,-151.0,0.00019945,2]